bitfinex-derivatives/quotes_BTCF0:USTF0_20250805
["timestamp","ask_amount","ask_price","bid_price","bid_amount"]
[1754415458617,0.6553606,113420.0,113410.0,0.86971819]
[1754415459410,1.12532907,113420.0,113410.0,0.01007047]
[1754415459621,0.67747024,113420.0,113410.0,0.79888667]
[1754415459915,0.5371706,113420.0,113410.0,1.33970458]
[1754415460320,0.5613306,113420.0,113410.0,1.33970458]
[1754415460520,0.5613306,113420.0,113410.0,1.33870458]
[1754415460710,0.6553606,113420.0,113410.0,0.69234991]
[1754415461111,1.12532907,113420.0,113410.0,0.07998991]
[1754415461315,1.12532907,113420.0,113410.0,0.69227991]
[1754415461515,1.12532907,113420.0,113410.0,0.69234991]
[1754415462022,1.12532907,113420.0,113410.0,0.07998991]
[1754415462217,0.6553606,113420.0,113410.0,0.69238991]
[1754415464024,0.6553606,113420.0,113410.0,0.07998991]
[1754415464325,0.6553606,113420.0,113410.0,0.69238991]
[1754415464717,0.6553606,113420.0,113410.0,0.86877611]
[1754415465023,0.6553606,113420.0,113410.0,0.69238991]
[1754415467024,0.6553606,113420.0,113410.0,0.07998991]
[1754415467223,0.6553606,113420.0,113410.0,0.69238991]
[1754415468014,0.6553606,113420.0,113410.0,0.00914047]
[1754415468218,0.2945762,113410.0,113400.0,1.2192]
[1754415468420,1.12534467,113410.0,113400.0,1.83164]
[1754415469623,0.6553762,113410.0,113400.0,2.0080417]
[1754415469825,0.6553762,113410.0,113400.0,2.0090417]
[1754415470224,0.6553762,113410.0,113400.0,1.2202]
[1754415470414,0.6553762,113410.0,113400.0,1.83264]
[1754415470620,0.6553762,113410.0,113400.0,1.83164]
[1754415471022,0.6553762,113410.0,113400.0,1.2192]
[1754415471222,0.6553762,113410.0,113400.0,2.0080817]
[1754415471727,0.6553762,113410.0,113400.0,1.83168]
[1754415471925,1.12534467,113410.0,113400.0,1.83168]
[1754415472425,0.6553762,113410.0,113400.0,1.83168]
[1754415473731,1.12534467,113410.0,113400.0,1.83168]
[1754415474229,0.6553762,113410.0,113400.0,2.0080817]
[1754415474422,0.6553762,113410.0,113400.0,1.83168]
[1754415474823,0.6553762,113410.0,113400.0,1.3956017]
[1754415475031,0.6936131,113420.0,113410.0,0.1763862]
[1754415475327,0.6936131,113420.0,113410.0,0.64635467]
[1754415475525,0.6936131,113420.0,113410.0,0.7888662]
[1754415475723,0.7889631,113420.0,113410.0,0.61248]
[1754415475927,1.25893157,113420.0,113410.0,0.61248]
[1754415476528,1.26193157,113420.0,113410.0,0.61248]
[1754415477128,0.7919631,113420.0,113410.0,0.7888661]
[1754415477631,1.26193157,113420.0,113410.0,0.61248]
[1754415478018,0.1763861,113410.0,113400.0,1.4396896]
[1754415478224,1.12664457,113410.0,113400.0,1.83168]
[1754415480537,1.12664457,113410.0,113400.0,1.83172]
[1754415480832,1.12664457,113410.0,113400.0,1.83168]
[1754415482321,0.6566761,113410.0,113400.0,1.83168]
[1754415482526,0.6566761,113410.0,113400.0,2.0080817]
[1754415483021,0.6566761,113410.0,113400.0,2.47805017]
[1754415484638,0.6566761,113410.0,113400.0,1.83168]
[1754415484831,1.14848674,113410.0,113400.0,1.83168]
[1754415485133,0.67851827,113410.0,113400.0,1.83168]
[1754415488144,0.67851827,113410.0,113400.0,1.2192]
[1754415488340,1.14848674,113410.0,113400.0,1.83192]
[1754415489446,1.14848674,113410.0,113400.0,0.61276]
[1754415489938,1.14848674,113410.0,113400.0,0.61256]
[1754415492238,0.67851827,113410.0,113400.0,0.61256]
[1754415492440,1.14848674,113410.0,113400.0,0.61256]
[1754415493844,1.15721252,113410.0,113400.0,0.61256]
[1754415494040,0.1764484,113370.0,113360.0,1.96807604]
[1754415494246,0.1764484,113370.0,113360.0,3.05108451]
[1754415494543,0.1764484,113370.0,113360.0,3.44874967]
[1754415495438,0.6496069,113380.0,113370.0,0.1764484]
[1754415495644,0.2888069,113380.0,113370.0,0.64641687]
[1754415496543,0.2888069,113380.0,113370.0,0.64941687]
[1754415496744,0.2888069,113380.0,113370.0,0.65826317]
[1754415496946,0.2888069,113380.0,113370.0,0.66226317]
[1754415497146,0.2888069,113380.0,113370.0,0.73159295]
[1754415498345,0.2888069,113380.0,113370.0,0.26162448]
[1754415498543,0.2888069,113380.0,113370.0,0.73159295]
[1754415501848,0.2646669,113380.0,113370.0,0.73159295]
[1754415502550,0.2205553,113380.0,113370.0,1.09239295]
[1754415503050,0.1764445,113380.0,113370.0,1.56880095]
[1754415503549,0.1764445,113380.0,113370.0,1.83170095]
[1754415505642,0.1764445,113380.0,113370.0,1.36173248]
[1754415505841,0.1764445,113380.0,113370.0,1.83170095]
[1754415506952,0.1764445,113380.0,113370.0,1.53170095]
[1754415507453,0.1989945,113380.0,113370.0,2.14430095]
[1754415510151,0.2465745,113380.0,113370.0,2.14430095]
[1754415510455,0.2938145,113380.0,113370.0,2.14430095]
[1754415510657,0.2938145,113380.0,113370.0,1.96789295]
[1754415511342,0.1989945,113380.0,113370.0,1.96789295]
[1754415512152,0.2938145,113380.0,113370.0,0.96408332]
[1754415512350,0.2938145,113380.0,113370.0,1.96789295]
[1754415512555,0.2938145,113380.0,113370.0,1.13712448]
[1754415512850,0.2938145,113380.0,113370.0,0.96067608]
[1754415513252,0.2938145,113380.0,113370.0,1.13712448]
[1754415515156,0.2938145,113380.0,113370.0,1.21588332]
[1754415515359,0.2938145,113380.0,113370.0,0.95298332]
[1754415516557,0.2938145,113380.0,113370.0,1.42295179]
[1754415517947,0.2938145,113380.0,113370.0,0.95298332]
[1754415518148,0.1989945,113380.0,113370.0,1.42295179]
[1754415518349,0.1764445,113380.0,113370.0,1.78375179]
[1754415518552,0.2205374,113390.0,113380.0,0.1764328]
[1754415518752,0.1764297,113390.0,113380.0,1.00720127]
[1754415518951,0.2645968,113410.0,113400.0,0.1764017]
[1754415519157,0.2430469,113410.0,113400.0,1.25893017]
[1754415519460,0.2204969,113410.0,113400.0,1.22884408]
[1754415519657,0.2430469,113410.0,113400.0,1.69881255]
[1754415519854,0.2758769,113410.0,113400.0,1.69881255]
[1754415520055,0.2758769,113410.0,113400.0,1.22884408]
[1754415520354,0.2758769,113410.0,113400.0,1.69881255]
[1754415520560,0.2430469,113410.0,113400.0,1.61973017]
[1754415520755,0.2430469,113410.0,113400.0,1.25893017]
[1754415523062,0.6920171,113420.0,113410.0,0.1763862]
[1754415523257,0.6920171,113420.0,113410.0,0.65507712]
[1754415523651,0.3312171,113420.0,113410.0,0.65507712]
[1754415523856,0.2204768,113420.0,113410.0,1.01587712]
[1754415524053,0.2234768,113420.0,113410.0,1.01587712]
[1754415524961,0.3408468,113420.0,113410.0,1.09121092]
[1754415525163,0.3408468,113420.0,113410.0,0.62124245]
[1754415525662,0.3408468,113420.0,113410.0,1.26759712]
[1754415526358,0.3408468,113420.0,113410.0,1.26755712]
[1754415526757,0.2718668,113420.0,113410.0,1.26755712]
[1754415527260,0.2460268,113420.0,113410.0,1.26755712]
[1754415527965,0.2234768,113420.0,113410.0,1.26755712]
[1754415528467,0.2460268,113420.0,113410.0,1.62835712]
[1754415530267,0.2460268,113420.0,113410.0,1.89125712]
[1754415532466,0.3389768,113420.0,113410.0,1.89125712]
[1754415532771,0.3389768,113420.0,113410.0,1.89117712]
[1754415533673,0.3389768,113420.0,113410.0,1.42120865]
[1754415533864,0.3389768,113420.0,113410.0,1.89117712]
[1754415535774,0.3389768,113420.0,113410.0,1.53037712]
[1754415535968,0.3389768,113420.0,113410.0,0.88402245]
[1754415536176,0.3389768,113420.0,113410.0,0.62112245]
[1754415536468,0.3389768,113420.0,113410.0,1.26747702]
[1754415536673,0.3389768,113420.0,113410.0,1.09109092]
[1754415536866,0.3389768,113420.0,113410.0,1.26747702]
[1754415537674,0.3389768,113420.0,113410.0,0.62108245]
[1754415537871,0.3389768,113420.0,113410.0,0.79746855]
[1754415538470,0.3389768,113420.0,113410.0,1.26743702]
[1754415538876,0.3389768,113420.0,113410.0,0.79746855]
[1754415539068,0.3389768,113420.0,113410.0,1.26743702]
[1754415541667,0.2234768,113420.0,113410.0,1.62823702]
[1754415542178,0.2234768,113420.0,113410.0,1.42116855]
[1754415542376,0.2234768,113420.0,113410.0,1.89113702]
[1754415544478,0.2466768,113420.0,113410.0,1.89113702]
[1754415546276,0.2929268,113420.0,113410.0,0.80880865]
[1754415546584,0.3394668,113420.0,113410.0,1.53029712]
[1754415547270,0.3394668,113420.0,113410.0,1.06032865]
[1754415547578,0.3394668,113420.0,113410.0,1.53029712]
[1754415548175,0.3394668,113420.0,113410.0,0.65507712]
[1754415548382,0.3394668,113420.0,113410.0,0.79742865]
[1754415548580,0.3394668,113420.0,113410.0,1.26739712]
[1754415551383,0.3394668,113420.0,113410.0,1.21739712]
[1754415553080,0.2466768,113420.0,113410.0,1.22639294]
[1754415553472,0.2466768,113420.0,113410.0,1.58719294]
[1754415553674,0.2234768,113420.0,113410.0,1.58719294]
[1754415554181,0.2466768,113420.0,113410.0,1.58719294]
[1754415555983,0.2782868,113420.0,113410.0,1.58719294]
[1754415556779,0.2466768,113420.0,113410.0,1.58719294]
[1754415557787,0.2782868,113420.0,113410.0,1.58719294]
[1754415558190,0.2466768,113420.0,113410.0,1.58719294]
[1754415561695,0.2466768,113420.0,113410.0,1.11722447]
[1754415561892,0.2466768,113420.0,113410.0,1.58719294]
[1754415563493,0.2462068,113420.0,113410.0,1.58719294]
[1754415563692,0.2234768,113420.0,113410.0,1.58719294]
[1754415563993,0.2462068,113420.0,113410.0,1.58719294]
[1754415565792,0.2462068,113420.0,113410.0,1.85009294]
[1754415567892,0.3183568,113420.0,113410.0,1.85009294]
[1754415568092,0.3413868,113420.0,113410.0,1.85009294]
[1754415569996,0.3413868,113420.0,113410.0,1.84993294]
[1754415571697,0.2462068,113420.0,113410.0,1.84993294]
[1754415572400,0.2462068,113420.0,113410.0,0.76780447]
[1754415572401,0.3413868,113420.0,113410.0,0.76780447]
[1754415572698,0.3413868,113420.0,113410.0,1.06044202]
[1754415574099,0.3413868,113420.0,113410.0,1.53041049]
[1754415577700,0.3413868,113420.0,113410.0,0.79754192]
[1754415578494,0.3413868,113420.0,113410.0,1.26751039]
[1754415579203,0.3413868,113420.0,113410.0,0.62115582]
[1754415579501,0.3413868,113420.0,113410.0,1.26751039]
[1754415579900,0.3273168,113420.0,113410.0,1.62831039]
[1754415580401,0.2707268,113420.0,113410.0,1.62831039]
[1754415582503,0.3042868,113420.0,113410.0,1.62831039]
[1754415582990,0.2707268,113420.0,113410.0,1.62831039]
[1754415583395,0.2707268,113420.0,113410.0,1.89121039]
[1754415583596,0.2462068,113420.0,113410.0,1.89121039]
[1754415584500,0.2234768,113420.0,113410.0,1.89121039]
[1754415585304,0.2462068,113420.0,113410.0,1.89121039]
[1754415589308,0.2462068,113420.0,113410.0,1.62831039]
[1754415590907,0.2797668,113420.0,113410.0,1.62831039]
[1754415591099,0.3042868,113420.0,113410.0,1.62831039]
[1754415591500,0.3183568,113420.0,113410.0,1.62831039]
[1754415592210,0.2707268,113420.0,113410.0,1.62831039]
[1754415592407,0.2462068,113420.0,113410.0,1.62831039]
[1754415595316,0.2462068,113420.0,113410.0,1.89121039]
[1754415596816,0.2802568,113420.0,113410.0,1.89121039]
[1754415597222,0.3278568,113420.0,113410.0,1.89121039]
[1754415597423,0.3417668,113420.0,113410.0,1.89121039]
[1754415600421,0.2462068,113420.0,113410.0,1.89121039]
[1754415601228,0.3417668,113420.0,113410.0,1.89121039]
[1754415605919,0.3417668,113420.0,113410.0,1.89089039]
[1754415609724,0.2938068,113420.0,113410.0,1.27905039]
[1754415609926,0.3417668,113420.0,113410.0,0.88365582]
[1754415610329,0.7025668,113420.0,113410.0,0.88365582]
[1754415610629,0.3417668,113420.0,113410.0,1.26711039]
[1754415610829,0.2462068,113420.0,113410.0,1.62791039]
[1754415613535,0.1793705,113420.0,113410.0,1.62791039]
[1754415613827,0.003,113420.0,113410.0,1.62791039]
[1754415614027,0.003,113420.0,113410.0,1.89081039]
[1754415614936,0.002,113420.0,113410.0,1.89081039]
[1754415615340,0.002,113420.0,113410.0,2.00174317]
[1754415615936,0.002,113420.0,113410.0,2.00274317]
[1754415616137,0.2892642,113430.0,113420.0,0.1763705]
[1754415616336,0.3628842,113430.0,113420.0,1.00713897]
[1754415616539,0.3149242,113430.0,113420.0,1.00713897]
[1754415616740,0.2892642,113430.0,113420.0,1.00713897]
[1754415617843,0.2902642,113430.0,113420.0,1.00713897]
[1754415618945,0.2912642,113430.0,113420.0,1.27003897]
[1754415621146,0.3729142,113430.0,113420.0,1.88159897]
[1754415621347,0.3868242,113430.0,113420.0,1.88159897]
[1754415624848,0.3388642,113430.0,113420.0,1.88159897]
[1754415625148,0.2912642,113430.0,113420.0,1.88159897]
[1754415625748,0.3842042,113430.0,113420.0,1.88159897]
[1754415630042,0.3703242,113430.0,113420.0,1.88159897]
[1754415631349,0.3144242,113430.0,113420.0,1.88159897]
[1754415631552,0.2912642,113430.0,113420.0,1.88159897]
[1754415632744,0.1783549,113430.0,113420.0,1.88159897]
[1754415632948,0.002,113430.0,113420.0,1.88159897]
[1754415633952,0.001,113430.0,113420.0,1.88159897]
[1754415634957,0.3661443,113440.0,113430.0,0.176355]
[1754415635255,0.3904543,113440.0,113430.0,1.27002347]
[1754415635654,0.3904543,113440.0,113430.0,1.34229016]
[1754415636150,0.3914543,113440.0,113430.0,1.34229016]
[1754415636960,0.4270143,113440.0,113430.0,1.34229016]
[1754415638460,0.3829258,113440.0,113430.0,1.34229016]
[1754415639660,0.2028121,113440.0,113430.0,1.34229016]
[1754415639858,0.02646,113440.0,113430.0,1.34229016]
[1754415640962,0.02546,113440.0,113430.0,1.34229016]
[1754415641163,0.2017994,113440.0,113430.0,1.34229016]
[1754415641563,0.2007994,113440.0,113430.0,1.34229016]
[1754415641766,0.2007994,113440.0,113430.0,1.07939016]
[1754415642367,0.02446,113440.0,113430.0,1.07939016]
[1754415642665,0.02446,113440.0,113430.0,0.60942169]
[1754415642867,0.02446,113440.0,113430.0,1.07939016]
[1754415643067,0.2007995,113440.0,113430.0,1.07939016]
[1754415643962,0.02446,113440.0,113430.0,1.07939016]
[1754415644156,0.3680004,113460.0,113450.0,0.1763239]
[1754415644361,0.3680004,113460.0,113450.0,1.25749237]
[1754415644362,0.3818804,113460.0,113450.0,1.25749237]
[1754415644760,0.2937239,113450.0,113440.0,0.5812191]
[1754415645066,0.2937239,113450.0,113440.0,1.66234757]
[1754415645266,0.2937239,113450.0,113440.0,1.1482951]
[1754415645469,0.2937239,113450.0,113440.0,1.61826357]
[1754415646170,0.2967239,113450.0,113440.0,1.61826357]
[1754415646864,0.2967239,113450.0,113440.0,1.25746357]
[1754415647062,0.2798594,113440.0,113430.0,0.69758329]
[1754415647257,0.2937394,113440.0,113430.0,1.22053059]
[1754415647462,0.2937394,113440.0,113430.0,1.69049906]
[1754415648562,0.2947394,113440.0,113430.0,1.07937906]
[1754415648763,0.2957394,113440.0,113430.0,1.51411516]
[1754415648964,0.2957394,113440.0,113430.0,1.69047016]
[1754415649167,0.2957394,113440.0,113430.0,1.15331516]
[1754415649470,0.2977394,113440.0,113430.0,1.32967016]
[1754415650472,0.2977394,113440.0,113430.0,0.07226669]
[1754415650669,0.76870787,113440.0,113430.0,0.61104]
[1754415650865,1.42950787,113440.0,113430.0,0.61104]
[1754415651167,1.12950787,113440.0,113430.0,0.61104]
[1754415651561,0.2987394,113440.0,113430.0,1.61816347]
[1754415651767,0.2057994,113440.0,113430.0,1.61816347]
[1754415652572,0.2770994,113440.0,113430.0,1.68799707]
[1754415652768,0.2629294,113440.0,113430.0,1.68799707]
[1754415653072,0.2057994,113440.0,113430.0,1.68799707]
[1754415656372,0.2037994,113440.0,113430.0,1.68799707]
[1754415659665,0.2017994,113440.0,113430.0,1.68799707]
[1754415659868,0.2027994,113440.0,113430.0,1.68799707]
[1754415660275,0.2966394,113440.0,113430.0,1.51164207]
[1754415661176,0.2966394,113440.0,113430.0,1.68799707]
[1754415662172,0.2507294,113440.0,113430.0,1.68799707]
[1754415662675,0.2824694,113440.0,113430.0,1.68799707]
[1754415662975,0.2966394,113440.0,113430.0,1.68799707]
[1754415665575,0.2966394,113440.0,113430.0,1.2180286]
[1754415665775,0.2966394,113440.0,113430.0,1.68799707]
[1754415667377,0.2966394,113440.0,113430.0,1.2180286]
[1754415667677,0.2966394,113440.0,113430.0,1.68799707]
[1754415670272,0.2966394,113440.0,113430.0,1.2180286]
[1754415670470,0.2966394,113440.0,113430.0,1.68799707]
[1754415670878,0.2966394,113440.0,113430.0,1.51164207]
[1754415671072,0.2966394,113440.0,113430.0,1.68799707]
[1754415672875,0.2966394,113440.0,113430.0,1.51164207]
[1754415673079,0.2966394,113440.0,113430.0,0.4306336]
[1754415673379,0.2966394,113440.0,113430.0,1.51136207]
[1754415674379,0.2966394,113440.0,113430.0,1.68771707]
[1754415674774,0.2966394,113440.0,113430.0,1.51136207]
[1754415675275,0.2966394,113440.0,113430.0,1.0413936]
[1754415675484,0.2966394,113440.0,113430.0,1.51136207]
[1754415676083,0.2966394,113440.0,113430.0,1.68771707]
[1754415676383,0.2966394,113440.0,113430.0,1.76660869]
[1754415678186,0.2966394,113440.0,113430.0,1.29664022]
[1754415678383,0.2966394,113440.0,113430.0,1.76660869]
[1754415678985,0.2027994,113440.0,113430.0,1.76660869]
[1754415680185,0.2018994,113440.0,113430.0,1.76660869]
[1754415680582,0.002,113440.0,113430.0,2.23657716]
[1754415680882,0.002,113440.0,113430.0,2.15768554]
[1754415681077,0.001,113440.0,113430.0,2.44493032]
[1754415681285,0.2880137,113470.0,113460.0,0.1763084]
[1754415681492,0.2644537,113470.0,113460.0,1.61771687]
[1754415681787,0.2644348,113480.0,113470.0,0.1762928]
[1754415681977,0.2877148,113480.0,113470.0,1.61766127]
[1754415682180,0.2876864,113490.0,113480.0,0.1762773]
[1754415682484,0.2436184,113490.0,113480.0,1.47701424]
[1754415682785,0.2436184,113490.0,113480.0,1.00704577]
[1754415683183,0.3360351,113500.0,113490.0,0.1762618]
[1754415683383,0.2876651,113500.0,113490.0,1.61763027]
[1754415683685,0.2203213,113500.0,113490.0,1.61763027]
[1754415683882,0.2876414,113510.0,113500.0,0.1762462]
[1754415684081,0.2643614,113510.0,113500.0,1.02317331]
[1754415684281,0.2876414,113510.0,113500.0,1.02317331]
[1754415684484,0.2435812,113510.0,113500.0,1.02317331]
[1754415684684,0.1762432,113510.0,113500.0,1.02317331]
[1754415685282,0.1812432,113510.0,113500.0,1.02317331]
[1754415686580,0.2045232,113510.0,113500.0,1.02317331]
[1754415686779,0.2478932,113510.0,113500.0,0.84692711]
[1754415686984,0.2962532,113510.0,113500.0,1.09660711]
[1754415687184,0.6570532,113510.0,113500.0,1.09648711]
[1754415687384,0.6570532,113510.0,113500.0,0.62651864]
[1754415687886,0.6560532,113510.0,113500.0,0.62651864]
[1754415688086,0.6580532,113510.0,113500.0,0.62651864]
[1754415688388,0.6580532,113510.0,113500.0,1.09648711]
[1754415688586,0.6600532,113510.0,113500.0,1.09648711]
[1754415688791,0.6620532,113510.0,113500.0,0.62651864]
[1754415689283,0.6620532,113510.0,113500.0,0.01615864]
[1754415689488,0.6620532,113510.0,113490.0,0.90280657]
[1754415689489,0.2246163,113500.0,113490.0,0.90280657]
[1754415689687,0.2952563,113500.0,113490.0,1.32862837]
[1754415690289,0.2952563,113500.0,113490.0,1.15236657]
[1754415690684,0.2972563,113500.0,113490.0,1.15236657]
[1754415691084,0.2972563,113500.0,113490.0,1.15228657]
[1754415692192,0.2992563,113500.0,113490.0,1.15228657]
[1754415693592,0.6600563,113500.0,113490.0,1.15220657]
[1754415693792,0.6600563,113500.0,113490.0,0.6980907]
[1754415693988,0.6600563,113500.0,113490.0,0.6822381]
[1754415697592,1.43002477,113500.0,113490.0,0.0720381]
[1754415697895,0.2952718,113490.0,113480.0,0.01605857]
[1754415698091,0.2952718,113490.0,113480.0,0.61012]
[1754415699195,0.2982718,113490.0,113480.0,0.61012]
[1754415699893,0.1994973,113480.0,113470.0,1.23436062]
[1754415700095,0.2952873,113480.0,113470.0,2.02077352]
[1754415700998,0.2962873,113480.0,113470.0,2.02077352]
[1754415701596,0.2489273,113480.0,113470.0,2.49074199]
[1754415701797,0.2257073,113480.0,113470.0,2.85154199]
[1754415701997,0.2257073,113480.0,113470.0,2.49074199]
[1754415702503,0.2257073,113480.0,113470.0,2.85154199]
[1754415702704,0.2005573,113480.0,113470.0,2.85154199]
[1754415703002,0.1995573,113480.0,113470.0,2.85154199]
[1754415704505,0.1762773,113480.0,113470.0,2.85154199]
[1754415704705,0.1995573,113480.0,113470.0,2.85154199]
[1754415707206,0.1995573,113480.0,113470.0,2.67524909]
[1754415708910,0.2952873,113480.0,113470.0,2.06512909]
[1754415709408,0.2952873,113480.0,113470.0,2.20516062]
[1754415709810,0.2952873,113480.0,113470.0,1.84436062]
[1754415710206,1.12605577,113480.0,113470.0,1.1747571]
[1754415710408,0.2953184,113460.0,113450.0,0.46996847]
[1754415710711,0.2953184,113460.0,113450.0,1.07996847]
[1754415711509,0.0881433,113480.0,113460.0,0.04727]
[1754415711713,0.0881433,113480.0,113470.0,0.9708]
[1754415711714,0.42122703,113480.0,113470.0,0.9708]
[1754415712014,0.42222703,113480.0,113470.0,1.04383]
[1754415712311,0.89847504,113480.0,113470.0,1.04383]
[1754415712811,0.90147504,113480.0,113470.0,1.04383]
[1754415713015,0.90047504,113480.0,113470.0,1.04383]
[1754415713219,0.90047504,113480.0,113470.0,1.02935]
[1754415713619,0.97649504,113480.0,113470.0,1.02935]
[1754415714123,0.99117101,113480.0,113470.0,1.02935]
[1754415714920,0.69117101,113480.0,113470.0,1.02935]
[1754415715514,0.69117101,113480.0,113470.0,1.04383]
[1754415715815,0.67649504,113480.0,113470.0,1.04383]
[1754415716114,0.17624801,113480.0,113470.0,1.42833]
[1754415716319,0.39949521,113480.0,113470.0,1.89829847]
[1754415717123,0.2262472,113480.0,113470.0,1.89829847]
[1754415717420,0.2282472,113480.0,113470.0,1.89829847]
[1754415718121,0.2898372,113480.0,113470.0,1.89829847]
[1754415718623,0.2878372,113480.0,113470.0,1.89829847]
[1754415720027,0.2651272,113480.0,113470.0,1.89829847]
[1754415720217,0.2651272,113480.0,113470.0,2.07459127]
[1754415720418,0.1792772,113480.0,113470.0,2.07459127]
[1754415720818,0.2672372,113480.0,113470.0,1.89829847]
[1754415721325,0.46996847,113500.0,113480.0,0.08545]
[1754415721625,1.26309157,113500.0,113490.0,0.7453]
[1754415721824,0.82247357,113500.0,113490.0,1.35526]
[1754415722024,1.29868957,113500.0,113490.0,1.35526]
[1754415722426,1.31309556,113500.0,113490.0,1.35526]
[1754415722724,0.84912709,113500.0,113490.0,1.35526]
[1754415723527,0.84912709,113500.0,113490.0,0.7453]
[1754415723731,0.84912709,113500.0,113490.0,1.35522]
[1754415724422,0.85112709,113500.0,113490.0,1.35522]
[1754415724932,0.84912709,113500.0,113490.0,1.40239]
[1754415726924,0.5347211,113500.0,113490.0,2.04862027]
[1754415727630,0.3585051,113500.0,113490.0,2.04862027]
[1754415728230,0.37983366,113500.0,113490.0,2.04862027]
[1754415730533,0.37984109,113500.0,113490.0,2.04862027]
[1754415731134,0.39423494,113500.0,113490.0,2.04862027]
[1754415732334,0.39423494,113500.0,113490.0,1.87235847]
[1754415732632,0.39423494,113500.0,113490.0,1.40239]
[1754415734532,0.86420341,113500.0,113490.0,1.40239]
[1754415735442,0.92755906,113500.0,113490.0,1.40239]
[1754415735937,0.92755906,113500.0,113490.0,1.4495]
[1754415738641,1.10377506,113500.0,113490.0,1.43494]
[1754415739141,1.10377506,113500.0,113490.0,1.44942]
[1754415741447,1.11127506,113500.0,113490.0,1.44942]
[1754415743341,1.11127506,113500.0,113490.0,1.6256818]
[1754415743546,1.11127506,113500.0,113490.0,1.44942]
[1754415743746,1.11127506,113500.0,113490.0,0.83974]
[1754415743946,0.65330659,113500.0,113490.0,1.6256018]
[1754415744335,1.06719059,113500.0,113490.0,2.09557027]
[1754415744846,1.06719059,113500.0,113490.0,1.6256018]
[1754415745044,1.07469059,113500.0,113490.0,1.6256018]
[1754415745346,1.48130341,113500.0,113490.0,1.44934]
[1754415745547,1.48130341,113500.0,113490.0,1.6256018]
[1754415746144,1.01133494,113500.0,113490.0,1.6041918]
[1754415746350,1.65751941,113500.0,113490.0,1.43023]
[1754415747650,1.48130341,113500.0,113490.0,1.43023]
[1754415748651,1.48130341,113500.0,113490.0,1.47029]
[1754415749746,1.48130341,113500.0,113490.0,0.86077]
[1754415750750,0.39423494,113500.0,113490.0,1.50700027]
[1754415751053,1.00371494,113500.0,113490.0,1.50700027]
[1754415751249,1.00371494,113500.0,113490.0,1.0370318]
[1754415752056,0.38184109,113500.0,113490.0,1.0370318]
[1754415752354,0.20558219,113500.0,113490.0,1.68324828]
[1754415752546,0.14253219,113500.0,113490.0,1.68324828]
[1754415752746,0.11753219,113500.0,113490.0,1.68324828]
[1754415752947,0.20558219,113500.0,113490.0,1.68324828]
[1754415753450,0.20358219,113500.0,113490.0,2.29268828]
[1754415753653,0.23965219,113500.0,113490.0,2.29268828]
[1754415753958,0.20058219,113500.0,113490.0,1.82271981]
[1754415754762,0.19858219,113500.0,113490.0,1.82271981]
[1754415754962,0.19758219,113500.0,113490.0,1.82271981]
[1754415755263,0.19958219,113500.0,113490.0,1.82271981]
[1754415755861,0.19958219,113500.0,113490.0,2.29268828]
[1754415756057,0.20058219,113500.0,113490.0,2.29268828]
[1754415757364,0.20058219,113500.0,113490.0,2.11644027]
[1754415757565,0.20058219,113500.0,113490.0,2.29268828]
[1754415757762,0.19958219,113500.0,113490.0,2.29268828]
[1754415758266,0.02333599,113500.0,113490.0,2.29268828]
[1754415758559,0.2643358,113520.0,113510.0,0.2591707]
[1754415758763,0.93699285,113530.0,113520.0,0.2920152]
[1754415758966,0.28361915,113530.0,113520.0,1.14579367]
[1754415759166,0.2202635,113530.0,113520.0,1.14579367]
[1754415759759,0.1762119,113530.0,113520.0,1.14579367]
[1754415759953,0.2642902,113540.0,113530.0,0.3150097]
[1754415760267,0.2642902,113540.0,113530.0,1.2850897]
[1754415760458,0.2642902,113540.0,113530.0,1.75505817]
[1754415761269,0.2702902,113540.0,113530.0,1.75505817]
[1754415761567,0.1821955,113540.0,113530.0,1.93130618]
[1754415761868,0.007,113540.0,113530.0,1.93130618]
[1754415762065,0.1831842,113540.0,113530.0,1.93130618]
[1754415762667,0.007,113540.0,113530.0,1.93130618]
[1754415762965,0.1771842,113540.0,113530.0,1.93130618]
[1754415764365,0.1771842,113540.0,113530.0,1.46133771]
[1754415764570,0.1771842,113540.0,113530.0,1.93130618]
[1754415769284,0.1771842,113540.0,113530.0,1.46133771]
[1754415769468,0.1771842,113540.0,113530.0,1.93130618]
[1754415770671,0.19800838,113540.0,113530.0,1.93130618]
[1754415773179,0.19800838,113540.0,113530.0,1.46133771]
[1754415773379,0.19800838,113540.0,113530.0,1.93130618]
[1754415776476,0.27436838,113540.0,113530.0,1.32202618]
[1754415776683,0.28594838,113540.0,113530.0,1.46089771]
[1754415776983,0.31582838,113540.0,113530.0,1.46089771]
[1754415777279,0.29318838,113540.0,113530.0,1.46089771]
[1754415777479,0.29318838,113540.0,113530.0,1.93086618]
[1754415777680,0.29318838,113540.0,113530.0,1.46089771]
[1754415777982,0.29318838,113540.0,113530.0,1.93086618]
[1754415778184,0.29318838,113540.0,113530.0,1.93082618]
[1754415778383,0.28594838,113540.0,113530.0,0.6758097]
[1754415778683,0.78579685,113540.0,113530.0,1.2845697]
[1754415779284,0.31582838,113540.0,113530.0,1.10837]
[1754415781180,0.78579685,113540.0,113530.0,0.43956]
[1754415781372,0.78579685,113540.0,113530.0,0.50022]
[1754415781881,0.78579685,113540.0,113530.0,0.6764197]
[1754415782087,0.31582838,113540.0,113530.0,0.6764197]
[1754415782384,0.29318838,113540.0,113530.0,0.6764197]
[1754415782778,0.31582838,113540.0,113530.0,0.50022]
[1754415782973,0.31582838,113540.0,113530.0,0.6764197]
[1754415783187,0.31582838,113540.0,113530.0,0.50022]
[1754415783579,0.31582838,113540.0,113530.0,0.6764197]
[1754415788291,0.37918403,113540.0,113530.0,0.6764197]
[1754415792492,0.30056403,113540.0,113530.0,0.6764197]
[1754415792693,0.33772403,113540.0,113530.0,0.6764197]
[1754415792992,0.37773403,113540.0,113530.0,0.6764197]
[1754415795386,0.31437838,113540.0,113530.0,0.6764197]
[1754415798497,0.78434685,113540.0,113530.0,0.6764197]
[1754415799296,0.78434685,113540.0,113530.0,0.41611]
[1754415799498,0.78434685,113540.0,113530.0,0.43956]
[1754415799692,0.78434685,113540.0,113530.0,0.50022]
[1754415800900,0.8477025,113540.0,113530.0,0.50022]
[1754415801893,0.8477025,113540.0,113530.0,0.41611]
[1754415802202,1.5139475,113540.0,113530.0,0.3608]
[1754415802494,1.45059185,113540.0,113530.0,0.3608]
[1754415802687,1.52978352,113540.0,113530.0,0.3608]
[1754415802999,0.2926496,113530.0,113520.0,0.3608]
[1754415803188,1.63144998,113530.0,113520.0,0.3608]
[1754415803389,2.02323834,113530.0,113520.0,0.3608]
[1754415803590,2.1113169,113530.0,113520.0,0.3608]
[1754415803990,1.8113169,113530.0,113520.0,0.3608]
[1754415805602,0.1762152,113520.0,113510.0,0.3608]
[1754415805903,1.40979414,113520.0,113510.0,0.3608]
[1754415806103,1.88598614,113520.0,113510.0,0.3608]
[1754415806300,1.97407246,113520.0,113510.0,0.3608]
[1754415808310,1.97807246,113520.0,113510.0,0.3608]